Cogmind - Beta 14 @@@ ROGUE MODE // 2025.04.29 @ 21:54:28 Player: celerysam Result: Destroyed by L5-Y7F(R) with Subdweller Laser Performance ------------- Evolutions (0) 0 Regions Visited (2) 400 Robots Destroyed (13) 65 Value Destroyed (350) 350 Prototype IDs (0) 0 Alien Tech Used (0) 0 Bonus (0) 0 TOTAL SCORE: 815 Bonus ------- None Cogmind --------- Core Integrity 0/250 Matter 300/300 Energy 198/200 System Corruption 0% Temperature Cool (6) Movement Rolling (90) Location -10/Subcaves Parts ------- > --- POWER (1) -------- Subdweller Power Source > --- PROPULSION (2) --- Wheel Compact Wheel > --- UTILITY (2) ------ Small Storage Unit Targeting Computer > --- WEAPON (2) ------- Barrage Gun Slug Cannon > --- INVENTORY (8) ---- Subdweller Power Source Spiked Treads Subdweller Monowheel Subdweller Monowheel Slug Cannon Subdweller Shrapnel Launcher Datajack Makeshift Spear Peak State ------------ > --- POWER ------------ Subdweller Power Source > --- PROPULSION ------- Wheel Compact Wheel > --- UTILITY ---------- Small Storage Unit Targeting Computer > --- WEAPON ----------- Barrage Gun Slug Cannon > --- INVENTORY -------- Subdweller Power Source Light Treads Subdweller Monowheel Battle Rifle Slug Cannon Subdweller Shrapnel Launcher Datajack Makeshift Spear [Rating: 14] Favorites ----------- Power Ion Engine Engine Ion Engine Propulsion Aluminum Leg Leg Aluminum Leg Wheel Wheel Utility Small Storage Unit Storage Small Storage Unit Processor Targeting Computer Weapon Assault Rifle Energy Cannon Subdweller Beam Cannon Ballistic Gun Assault Rifle Ballistic Cannon Light Cannon Build | -11 -10 -10 ------- Run | Yrd Mat Sub Slots Evolved . | . . . Power . | . . . Propulsion . | . . . Utility . | . . . Weapon . | . . . Parts Attached 34 | 5 15 14 Power 7 | 1 3 3 Engine 7 | 1 3 3 Core . | . . . Reactor . | . . . Propulsion 13 | 2 8 3 Treads . | . . . Leg 10 | 2 8 . Wheel 3 | . . 3 Hover . | . . . Flight . | . . . Utility 2 | 1 1 . Device . | . . . Storage 1 | 1 . . Processor 1 | . 1 . Hackware . | . . . Protection . | . . . Artifact . | . . . Weapon 12 | 1 3 8 Energy Gun . | . . . Energy Cannon 1 | . . 1 Ballistic Gun 9 | 1 3 5 Ballistic Cannon 2 | . . 2 Launcher . | . . . Special Weapon . | . . . Impact Weapon . | . . . Slashing Weapon . | . . . Piercing Weapon . | . . . Special Melee Weapon . | . . . Unidentified Prototypes . | . . . Parts Lost 6 | . . 6 Power 2 | . . 2 Propulsion 2 | . . 2 Utility . | . . . Weapon 2 | . . 2 Highest Loss Streak 2 | . . 2 To Critical Strikes 1 | . . 1 Average Slot Usage (%) 97 | . 97 98 Engine 13 | . 14 13 Leg 15 | . 27 4 Wheel 12 | . . 22 Storage 14 | . 14 14 Processor 13 | . 13 14 Energy Cannon 3 | . . 6 Ballistic Gun 16 | . 26 8 Ballistic Cannon 6 | . . 12 Peak Build Rating 14 | 5 7 14 Average Rating 7 | 3 6 8 On Entrance 4 | . 5 7 Naked Turns . | . . . Heaviest Build 21 | 10 13 21 Greatest Support 26 | 20 20 26 Greatest Overweight (x) 3 | . 3 2 Average Overweight (x) . | . . . Largest Inventory Capacity 8 | 8 8 8 Average Capacity 7 | 6 8 8 Most Carried 8 | 7 8 8 Average Carried 6 | 5 7 6 Final Capacity 8 | 8 8 8 Final Carried 8 | 7 8 8 Class Distribution -------------------- 100% | Mutant Dominant Class ---------------- Mutant | -10/Materials Mutant | -10/Subcaves Resources | -11 -10 -10 ----------- Run | Yrd Mat Sub Matter Collected 936 | 226 168 542 Remotely . | . . . Salvage Created 306 | . 221 85 Parts 23 | . 18 5 Haulers Intercepted 1 | . 1 . Recyclers Shooed . | . . . Parts Field Recycled . | . . . Retrieved Matter . | . . . Parts Self-Destructed . | . . . Prevented . | . . . Kills | -11 -10 -10 ------- Run | Yrd Mat Sub Combat Hostiles Destroyed 11 | . 6 5 Guns 7 | . 6 1 Cannons 4 | . . 4 Classes Destroyed 5 | . 4 1 Hauler 1 | . 1 . Operator 1 | . 1 . Swarmer 3 | . 3 . Grunt 3 | . 3 . Subdweller 5 | . . 5 Best Kill Streak 2 | . 2 2 Combat Bots Only 2 | . 2 2 Max Kills in Single Turn 1 | . 1 1 Gunslinging . | . . . Exploded . | . . . Melee . | . . . Uniques/NPCs Destroyed . | . . . Combat | -11 -10 -10 -------- Run | Yrd Mat Sub Hostile Shots Fired 86 | . 32 54 Missed 24 | . 7 17 Damage Taken 1124 | . 257 867 Core 256 | . 64 192 Absorbed by Shields . | . . . Core Remaining (%) 100 | 100 . . Volleys Fired 89 | . 28 61 Largest 2 | . 2 2 Hottest 115 | . 40 115 Shots Fired 155 | . 55 100 Gun 80 | . 55 25 Cannon 75 | . . 75 Launcher . | . . . Special . | . . . Kinetic 139 | . 55 84 Thermal 16 | . . 16 Explosive . | . . . Electromagnetic . | . . . Robot Hit Streak 18 | . 7 18 Robot Miss Streak 4 | . 4 3 Penetration Max . | . . . Secondary Targets . | . . . Shots Hit Robots 84 | . 33 51 Core Hits 22 | . 13 9 Critical Kills . | . . . Critical Parts Destroyed 2 | . 1 1 Critical Strikes 5 | . 1 4 Destroy 4 | . 1 3 Blast 1 | . . 1 Melee Attacks . | . . . Impact . | . . . Slashing . | . . . Piercing . | . . . Sneak Attacks . | . . . Combat Hostiles . | . . . Follow-up Attacks . | . . . Damage Inflicted 1387 | . 412 975 Guns 618 | . 393 225 Cannons 750 | . . 750 Explosions . | . . . Melee . | . . . Ramming 19 | . 19 . Kinetic 1315 | . 393 922 Thermal 53 | . . 53 Explosive . | . . . Electromagnetic . | . . . Impact . | . . . Slashing . | . . . Piercing . | . . . Highest Corruption . | . . . Average Corruption . | . . . Corruption Purged . | . . . Corruption Blocked . | . . . Overload Shots . | . . . Overflow Damage . | . . . Projectiles . | . . . Explosions . | . . . Melee . | . . . Knockbacks 8 | . . 8 Impact . | . . . Kinetic 8 | . . 8 Secondary . | . . . Self-Inflicted Damage . | . . . Shots . | . . . Rammed . | . . . Targets Rammed 2 | . 2 . Kicked 2 | . 2 . Crushed . | . . . Highest Temperature 294 | . 12 294 Average Temperature 75 | . 6 167 Received Heat Transfer 576 | . 96 480 Siege Activations . | . . . Robots Corrupted . | . . . Combat Hostiles . | . . . Parts Fried . | . . . Impact Corruptions . | . . . Robots Melted . | . . . Combat Hostiles . | . . . Parts Melted . | . . . Heat Transferred 74 | . . 74 Parts Sabotaged . | . . . Parts Stolen . | . . . Parts Stripped . | . . . Power Chain Reactions . | . . . Alert | -11 -10 -10 ------- Run | Yrd Mat Sub Peak Influence 150 | . 150 . Initial . | . . . Average 60 | . 64 . Maximum Alert Level . | . . . Low Security (%) 100 | 100 100 . Level 1 . | . . . Level 2 . | . . . Level 3 . | . . . Level 4 . | . . . Level 5 . | . . . High Security . | . . . Max Security . | . . . Squads Dispatched 1 | . 1 . Investigation . | . . . Extermination . | . . . Reinforcement 1 | . 1 . Assault . | . . . Garrison . | . . . Intercept . | . . . Searches Triggered . | . . . Construction Impeded . | . . . Haulers Reinforced . | . . . Active Scanning Responses . | . . . Cargo Convoy Interrupts . | . . . Stealth | -11 -10 -10 --------- Run | Yrd Mat Sub Distress Signals 1 | . 1 . Communications Jammed . | . . . Distress Signals . | . . . Times Spotted 21 | . 14 7 Peak Tracking Total 3 | . 3 2 Tactical Retreats 3 | . 2 1 Traps | -11 -10 -10 ------- Run | Yrd Mat Sub Traps Triggered 5 | . 4 1 Indirectly . | . . . Trap Hack Attempts . | . . . Triggered . | . . . Disarmed . | . . . Reprogrammed . | . . . Reused . | . . . Traps Extracted . | . . . Installed . | . . . Triggered . | . . . Machines | -11 -10 -10 ---------- Run | Yrd Mat Sub Machines Disabled . | . . . Max in Single Turn . | . . . Machines Repaired . | . . . Machines Dismantled . | . . . Machines Sabotaged . | . . . Overloaded Fab Kills . | . . . Hacking | -11 -10 -10 --------- Run | Yrd Mat Sub Machines Accessed 3 | . 3 . Terminals 3 | . 3 . Fabricators . | . . . Repair Stations . | . . . Recycling Units . | . . . Scanalyzers . | . . . Garrison Access . | . . . Total Hacks 4 | . 4 . Successful 1 | . 1 . Failed 3 | . 3 . Catastrophic . | . . . Database Lockouts . | . . . Manual 3 | . 3 . Terminals 4 | . 4 . Fabricators . | . . . Repair Stations . | . . . Recycling Units . | . . . Scanalyzers . | . . . Garrison Access . | . . . Terminal Hacks 1 | . 1 . Alert Level 1 | . 1 . Fabricator Hacks . | . . . Repair Station Hacks . | . . . Recycling Unit Hacks . | . . . Scanalyzer . | . . . Garrison Access Hacks . | . . . Unauthorized Hacks . | . . . Terminals . | . . . Fabricators . | . . . Repair Stations . | . . . Recycling Units . | . . . Scanalyzers . | . . . Garrison Access . | . . . Data Cores Recovered 1 | . 1 . Used . | . . . Hacking Detections 1 | . 1 . Full Trace Events . | . . . Feedback Events . | . . . Feedback Blocked . | . . . Robot Schematics Acquired . | . . . Robots Built . | . . . Authchips . | . . . Time . | . . . Total Robot Build Rating . | . . . Part Schematics Acquired . | . . . Parts Built . | . . . Authchips . | . . . Time . | . . . Total Part Build Rating . | . . . Parts Repaired . | . . . Time . | . . . Parts Recycled . | . . . Recycled Matter . | . . . Retrieved Matter . | . . . Retrieved Components . | . . . Parts Scanalyzed . | . . . Part Schematics Acquired . | . . . Parts Damaged . | . . . Bothacking | -11 -10 -10 ------------ Run | Yrd Mat Sub Used RIF Installer . | . . . Robots Hacked . | . . . Non-combat . | . . . Combat . | . . . Robot Hacks Applied . | . . . Relay Couplers Released . | . . . Fabnet Peak Effective % . | . . . Robots Rewired . | . . . Allies Hacked . | . . . Hacks Repelled . | . . . Allies | -11 -10 -10 -------- Run | Yrd Mat Sub Total Allies . | . . . Largest Group . | . . . Highest-Rated Group . | . . . Highest-Rated Ally . | . . . Total Orders . | . . . Ally Attacks . | . . . Total Damage . | . . . Kills . | . . . Allies Corrupted . | . . . Allies Melted . | . . . Intel | -11 -10 -10 ------- Run | Yrd Mat Sub Robot Analysis Total . | . . . Derelict Logs Recovered 1 | . . 1 Drone Launches . | . . . Drone Recoveries . | . . . Exploration | -11 -10 -10 ------------- Run | Yrd Mat Sub Turns Passed 1674 | 55 735 884 Spaces Moved 1156 | 41 387 728 Core 13 | 12 1 . Treads . | . . . Legs 495 | 29 386 80 Wheels 648 | . . 648 Hover . | . . . Flight . | . . . Fastest Speed 50 | 50 120 80 Average Speed 102 | 99 120 93 Slowest Speed 200 | 120 200 190 Overloaded Moves . | . . . Propulsion Burnouts . | . . . Robots Hopped . | . . . Cave-ins Triggered . | . . . Exploration Rate (%) 31 | 4 57 34 Regions Visited 2 Branch Regions 1 Pre-discovered Areas 1 | . . 1 Known Exits Taken . | . . . Unknown Exits Taken 2 | 1 1 . Scrap Searched 12 | . . 12 Spaces Dug . | . . . Terrain Destroyed 1 | . . 1 Melee . | . . . Projectile 1 | . . 1 AOE . | . . . Terrain Rammed . | . . . Walls Destroyed . | . . . Machines Disabled . | . . . Actions | -11 -10 -10 --------- Run | Yrd Mat Sub Total 1486 | 53 603 830 Wait 169 | . 165 4 Move 1154 | 40 386 728 Hop . | . . . Pick Up 24 | 8 3 13 Fast Attach 13 | 4 9 . Attach 9 | 1 2 6 Detach . | . . . Swap 12 | . 4 8 Drop 14 | . 4 10 Fire 89 | . 28 61 Melee . | . . . Ram . | . . . Kick 2 | . 2 . Crush . | . . . Escape Stasis . | . . . Rewire . | . . . Trap . | . . . Miscellaneous . | . . . Route ------- -11/Scrapyard -10/Materials (discovered 2 exits: [*Mat] / [*Sub]) -10/Subcaves (discovered 1 exit: [*Mat]) History --------- Turn | Location | Event 12 | -11/Scrapyard | Discovered new exit (range 16) 56 | -11/Scrapyard | Entered Materials 318 | -10/Materials | Build established: Mutant 517 | -10/Materials | Discovered new exit (range 8) 783 | -10/Materials | Discovered new exit (range 7) 791 | -10/Materials | Entered Subcaves 793 | -10/Subcaves | Learned 2 Materials zone layouts 808 | -10/Subcaves | Learned location of Zion (-7) 808 | -10/Subcaves | Met a Zionite searching for "candidates" 894 | -10/Subcaves | Disturbed a concealed Subdweller 925 | -10/Subcaves | Core integrity fell below 50% 996 | -10/Subcaves | A swath of the cavern ceiling suddenly collapsed 1205 | -10/Subcaves | Discovered new exit (range 15) 1215 | -10/Subcaves | Shifting Twisted Machinery released Slug Cannon 1536 | -10/Subcaves | Core integrity fell below 20% 1567 | -10/Subcaves | Disturbed a concealed Subdweller 1626 | -10/Subcaves | Shifting Twisted Machinery released Sub. Power Source 1629 | -10/Subcaves | Shifting Twisted Machinery released Spk. Treads 1675 | -10/Subcaves | Destroyed by L5-Y7F(R) with Subdweller Laser Last Messages --------------- 01584_ Searching scrap... 01584_ Found Mak. Light Armor Plating. 01584_ Found Sub. Power Source. 01584_ Found 64 Matter. 01585_ Acquired 39 matter. 01586_ Acquired Barrage Gun. 01588_ Dropped Battle Rifle. 01590_ Searching scrap... 01590_ Found Sub. Monowheel. 01590_ Found 67 Matter. 01591_ Acquired 10 matter. 01592_ Acquired Sub. Monowheel. Sub. Power Source falls loose from the Twisted Machinery. Spk. Treads falls loose from the Twisted Machinery. 01632_ Dropped Sub. Power Source. 01636_ Dropped Lgt. Treads. 01636_ Acquired Spk. Treads. 01661_ Acquired 10 matter. Map ----- +----------------------------------------------------+ | ?????????????????????????????????????????????????? | | ?????????????????????????????????????????????????? | | ?????????????????????????????????????????????????? | | ????????????????##???????????????????????????????? | | ???????????????? ???????????????????????????????? | | ???????????????? ???????????????????????????????? | | ???????????????? #??"????????????????????????????? | | ??????????????## #?"?????????????????????????????? | | ?????????????? ## ?????????????????????????????? | | ????????##???? ??????????????????????????????? | | ????????# ???? ^ ???????????????????????????????? | | ????????# ???# #???????????????????????????????? | | ????????#""??? ????????????????????????????????? | | ?????????# #### #????????????????????????????????? | | ??????#### ##???????????????????????????????? | | ?????## #???????????????????????????????? | | ?????# #####????????????????????????????? | | ??????# ## ####?????????????????????????? | | ??????#### # ### #?????????????????????????? | | ????????# ## ### #??????????????????????????? | | ????????# ## ##?????????????????????????? | | ????????## R ##????????????????????????? | | ????????## #????????????????????????? | | ????????# ###??????????????####????? | | ????????# #####?#######?## ##???? | | ????????# * @ ### ### ####? | | ????????# ## ####% #?# """ ## | | ?????? ?# ##??## ###"" "= # | | ?????## ??# ##???# " """"" ## | | ??????####### ##??# """ " * ##? | | ????????## ##### "##" ###?? | | ????????# #?# ##### #??? | | ????????# #?## % ##???# #??? | | ????????# ## ##??## ##????# ##??? | | ????????### ## #????#### #????## #??## | | ??????????# #???????##### ???# "#### | | ??????????# #????????#### ???##"""## | | ??????????## #??####### ## ##???###"## # | | ???????????#### #??# ##?????##"" ## | | ??????????????## #### ##????###"" ##? | | ??????????????## ## ##???####""""#?# | | ?????????????## ##?# #?# #????##"""#"""# | | ?????????????# #### ### ##???#"# ##""#"# | | ??????????#### ## ## ##??##" ##"""""" | | ?????????## ## ## ####"#""#"""### | | ???###?### ## ### """##""#"?? | | ??##]###%% ## #" #""#####""#? | | ??#%[!%#" # ### ######"#????##"? | | ??## [ % # %## #####???#"##??????## | | ??#[["##& ##??????##?????????? | +----------------------------------------------------+ Best States ------------- Heat Dissipation 25 Energy Generation 15 Energy Capacity 250 Matter Stores 300 Matter Capacity 300 Sight Range 16 Terrain Scan Density 10 Evasion (%) 55 Targeting Accuracy 5 Item Schematics ----------------- None Robot Schematics ------------------ None Fabricated ------------ Nothing Alien Tech Used ----------------- None Achievements -------------- None Challenges ------------ None Game ------ Seed HardlightLegBlade Manual? 0 Play Time 00:18:11 Cumulative 229.7 hours Start 2025.04.29 @ 21:30:15 End 2025.04.29 @ 21:54:28 Sessions 1 Manual Loads 0 Difficulty Rogue Special Mode None Game No. 332 Rogue 332 Adventurer 0 Explorer 0 Win Type - Total 1 Types 1/0/0/0/0/0/0/0/0 Lore% 37 Gallery% 64 Achievement% 43 Wizard Run 0 Options --------- Layout 1 ASCII 0 Keyboard 0 Movement Mouse Keybinds 0 Fullscreen 2 Font 24/Smallcaps Map View 50x35 Zoom Use 0% Tactical HUD 1 Map Filters NONE Filters NONE Steam 1 RUN: 6f1fc878-3e52-46db-ac7e-e3df124e963b